bitfinex/quotes_ETHUSD_20250219
["timestamp","ask_amount","ask_price","bid_price","bid_amount"]
[1739944369397,3.71564,2691.4,2690.9,0.05988304]
[1739944371463,3.71583,2691.2,2690.9,0.05988304]
[1739944371674,7.43176,2691.2,2690.9,0.05988304]
[1739944371870,3.71583,2691.2,2690.7,0.75782008]
[1739944372497,3.71583,2691.2,2690.8,0.05998121]
[1739944372858,6.71595,2691.1,2690.8,0.05998121]
[1739944373076,8.08221924,2691.1,2690.8,0.05998121]
[1739944373375,3.7161,2691.0,2690.8,0.05998121]
[1739944375209,3.71622,2690.9,2690.8,0.05998121]
[1739944375377,3.71622,2690.9,2690.7,0.75782008]
[1739944375579,3.71622,2690.9,2690.8,0.05998121]
[1739944377530,6.71622,2690.9,2690.8,0.05998121]
[1739944377832,3.71638,2690.8,2690.3,3.71696]
[1739944377999,3.71638,2690.8,2690.4,0.74336229]
[1739944378414,3.71656,2690.7,2690.4,0.74336229]
[1739944378832,3.71651,2690.7,2690.4,0.74336229]
[1739944378984,3.71652,2690.7,2690.4,0.74336229]
[1739944379189,1.47748613,2690.7,2690.2,0.1459051]
[1739944379390,3.71679,2690.5,2690.2,0.895228]
[1739944379829,3.71692,2690.4,2690.2,0.1459051]
[1739944380185,3.0,2690.5,2690.2,0.1459051]
[1739944380428,5.46261236,2690.6,2690.2,0.1459051]
[1739944381220,9.17927236,2690.6,2690.2,0.1459051]
[1739944382339,10.61659321,2690.6,2690.2,0.1459051]
[1739944384340,6.89993321,2690.6,2690.2,0.1459051]
[1739944384540,5.46261236,2690.6,2690.2,3.8630151]
[1739944384725,3.0,2690.6,2690.2,3.8630151]
[1739944385416,3.0,2690.6,2690.3,3.71704]
[1739944385824,9.09604,2691.1,2690.2,0.1459051]
[1739944386035,3.71604,2691.1,2690.5,3.71665]
[1739944386216,3.0,2691.0,2690.5,3.71665]
[1739944386420,6.71616,2691.0,2690.5,3.71665]
[1739944386864,3.0,2691.0,2690.5,3.71665]
[1739944387019,3.0,2691.0,2690.5,7.43334]
[1739944387222,5.46261236,2691.2,2690.3,3.71701]
[1739944387555,9.17843236,2691.2,2690.5,3.7167]
[1739944387753,11.0826346,2691.2,2690.6,3.71661]
[1739944389464,7.3668146,2691.2,2690.7,3.71649]
[1739944389664,3.71545,2691.5,2690.9,3.71609]
[1739944389665,6.95336236,2691.5,2690.9,3.71609]
[1739944390020,3.23791236,2691.5,2690.9,3.71609]
[1739944390222,3.23791236,2691.5,2691.0,3.71597]
[1739944390466,3.23791236,2691.5,2690.9,3.71609]
[1739944390669,3.0,2691.4,2691.1,3.71593]
[1739944390961,3.0,2691.4,2690.9,3.71609]
[1739944391325,3.0,2691.4,2691.0,3.71606]
[1739944392686,3.0,2691.4,2691.1,0.06057061]
[1739944393321,7.92511,2691.4,2691.1,0.06057061]
[1739944393470,3.71581,2691.2,2691.1,0.06057061]
[1739944393671,3.71581,2691.2,2690.7,0.7486093]
[1739944393985,0.7565,2691.3,2690.7,4.4650893]
[1739944394307,3.71586,2691.2,2690.8,0.06086512]
[1739944394514,4.163226,2691.1,2690.8,0.06086512]
[1739944394815,4.163226,2691.1,2690.5,3.71674]
[1739944395116,4.163226,2691.1,2690.9,0.06066131]
[1739944395312,4.163226,2691.1,2690.5,3.71674]
[1739944395471,4.163226,2691.1,2691.0,0.06056315]
[1739944395673,0.447236,2691.1,2690.7,3.7164]
[1739944395869,0.7565,2691.3,2691.0,0.06056315]
[1739944396133,0.7565,2691.3,2690.8,3.71634]
[1739944396268,4.92518,2691.4,2691.1,0.06056506]
[1739944396464,4.92518,2691.4,2690.8,3.71634]
[1739944396666,1.20953,2691.4,2690.9,3.71621]
[1739944396967,1.20953,2691.4,2691.0,3.71597]
[1739944397304,1.20953,2691.4,2691.0,3.77656094]
[1739944397809,5.38,2691.6,2691.0,3.77656094]
[1739944397973,9.09526,2691.6,2691.0,3.77656094]
[1739944400114,3.71563,2691.4,2691.0,0.06059094]
[1739944400497,3.71563,2691.4,2690.8,7.43256]
[1739944400812,3.71563,2691.4,2690.9,4.47326749]
[1739944401112,2.46261236,2691.5,2691.0,3.71608]
[1739944401473,2.46261236,2691.5,2691.1,0.06049278]
[1739944403218,3.71554,2691.4,2691.1,0.06049278]
[1739944403419,3.71554,2691.4,2690.9,0.75704749]
[1739944403719,3.71554,2691.4,2691.2,0.06006102]
[1739944404017,3.71554,2691.4,2691.3,0.05996287]
[1739944404315,3.71554,2691.4,2690.8,3.71625]
[1739944404528,4.81212986,2691.4,2691.3,0.05996287]
[1739944404672,4.81212986,2691.4,2690.8,3.71625]
[1739944405073,1.09658986,2691.4,2690.9,0.0603555]
[1739944405273,5.46261236,2691.5,2691.1,3.7159]
[1739944405474,3.0,2691.5,2691.1,3.7159]
[1739944405716,3.0,2691.5,2691.2,0.06006102]
[1739944406619,0.8314,2691.7,2691.3,3.71564]
[1739944406920,6.17763236,2691.8,2691.3,3.77560287]
[1739944407122,3.70033324,2691.7,2691.3,3.77560287]
[1739944407498,3.70033324,2691.7,2691.4,3.7155]
[1739944407499,3.0,2691.7,2691.4,3.7155]
[1739944407696,4.54056,2691.9,2691.4,3.7155]
[1739944407889,4.54056,2691.9,2691.5,0.0597666]
[1739944408088,3.0,2691.8,2691.5,0.0597666]
[1739944408294,0.8257,2691.9,2691.5,0.0597666]
[1739944408516,6.15038224,2691.9,2691.5,0.0597666]
[1739944409626,0.55,2692.2,2691.5,0.0597666]
[1739944409627,0.8257,2692.2,2691.5,0.0597666]
[1739944409781,2.46261236,2692.4,2691.8,3.71497]
[1739944409981,6.17679236,2692.4,2691.8,3.71497]
[1739944410213,3.0,2692.3,2691.9,0.05916292]
[1739944410733,5.46261236,2692.4,2691.9,3.77397292]
[1739944410910,10.73413856,2692.4,2691.9,0.05916292]
[1739944411284,10.73413856,2692.4,2691.7,3.71503]
[1739944411483,10.73413856,2692.4,2692.0,0.05876476]
[1739944411678,10.73413856,2692.4,2691.7,3.71503]
[1739944412326,9.17687236,2692.4,2691.8,0.05896096]
[1739944412638,9.17687236,2692.4,2691.9,0.75337338]
[1739944412817,3.7143,2692.3,2691.9,0.81223624]
[1739944413022,5.46261236,2692.4,2691.9,0.05886286]
[1739944413204,3.0,2692.1,2691.6,3.71525]
[1739944413404,3.0,2692.1,2692.0,0.0582702]
[1739944413768,3.671451,2692.1,2691.6,3.71525]
[1739944413891,9.17718236,2692.1,2692.0,0.0582702]
[1739944414600,9.17718236,2692.1,2691.3,3.98566]
[1739944414800,3.71482,2692.0,2691.3,3.71566]
[1739944415005,4.54782,2691.8,2691.4,0.05893111]
[1739944415733,3.71482,2692.0,2691.4,3.77436111]
[1739944416034,4.50482,2692.0,2691.5,3.71538]
[1739944416337,5.46261236,2692.1,2691.6,3.71516]
[1739944416831,5.46261236,2692.1,2691.7,0.05872008]
[1739944417549,5.46261236,2692.1,2691.7,3.77379008]
[1739944417738,8.38,2692.3,2691.8,3.7149]
[1739944418037,8.38,2692.3,2691.9,0.05852386]
[1739944418331,9.48456544,2692.3,2691.9,0.05852386]
[1739944419135,13.19892544,2692.3,2691.9,0.05852386]
[1739944419335,13.19892544,2692.3,2691.9,3.77328386]
[1739944419336,9.48456544,2692.3,2691.9,3.77328386]
[1739944419518,8.38,2692.3,2691.8,3.7149]
[1739944419834,8.38,2692.3,2691.9,0.05852386]
[1739944420032,8.38,2692.3,2691.8,3.7149]
[1739944420232,8.38,2692.3,2692.0,0.05842577]
[1739944420434,8.38,2692.3,2691.8,3.7149]
[1739944420637,8.38,2692.3,2692.1,0.05832768]
[1739944420810,4.53467824,2692.3,2691.8,7.4298]
[1739944421010,3.0,2692.3,2692.2,0.0582296]
[1739944421213,3.0,2692.3,2691.8,7.4298]
[1739944421397,3.0,2692.3,2692.2,0.0582296]
[1739944421594,3.0,2692.3,2691.8,3.7149]
[1739944421829,3.0,2692.3,2692.2,0.0582296]
[1739944422006,3.99667824,2692.3,2691.8,3.7149]
[1739944422210,3.0,2692.3,2692.2,0.0582296]
[1739944422426,3.0,2692.3,2691.8,3.71485]
[1739944422679,3.0,2692.3,2692.2,0.0582296]
[1739944423005,3.0,2692.3,2691.9,3.71477]
[1739944423206,3.0,2692.3,2692.2,0.0582296]
[1739944423499,2.46261236,2692.4,2692.0,3.71467]
[1739944423687,5.46261236,2692.4,2692.2,0.0582296]
[1739944423853,6.84971256,2692.4,2692.1,0.05832768]
[1739944424056,6.84971256,2692.4,2692.0,3.71467]
[1739944424374,6.84971256,2692.4,2692.1,0.05832768]
[1739944424568,6.84971256,2692.4,2691.9,3.71483]
[1739944424903,3.0,2692.4,2692.0,0.05842577]
[1739944425105,6.71416,2692.4,2692.0,0.05842577]
[1739944425457,3.0,2692.1,2691.7,4.4481316]
[1739944426200,3.0,2692.1,2691.8,3.71494]
[1739944427983,3.0,2692.2,2691.8,3.71494]
[1739944428185,7.63215924,2692.2,2691.7,0.7330416]
[1739944428374,0.7507,2692.1,2691.6,3.71525]
[1739944429702,0.7507,2692.1,2691.6,0.75074929]
[1739944429925,3.0,2692.2,2691.8,3.71487]
[1739944430427,3.71452,2692.2,2691.6,4.46594929]
[1739944430581,4.41314324,2692.2,2691.6,4.46594929]
[1739944431010,3.0,2692.1,2691.6,4.46594929]
[1739944431417,6.71463,2692.1,2691.6,4.46594929]
[1739944431818,6.71463,2692.1,2691.6,3.7152]
[1739944432726,8.12768324,2692.2,2691.6,3.7152]
[1739944432936,3.71459,2692.1,2691.6,3.7152]
[1739944433224,8.12765324,2692.2,2691.6,3.7152]
[1739944433432,4.41313324,2692.2,2691.6,3.7152]
[1739944433724,8.12766324,2692.2,2691.6,3.7152]
[1739944434432,0.89367632,2692.1,2691.6,3.7152]
[1739944434586,4.60824632,2692.1,2691.6,3.7152]
[1739944435302,0.89367632,2692.1,2691.6,3.7152]
[1739944435503,4.41313324,2692.2,2691.6,3.7152]
[1739944435901,8.12764324,2692.2,2691.6,3.7152]
[1739944436209,4.41313324,2692.2,2691.6,3.7152]
[1739944436814,3.71457,2692.1,2691.6,3.7152]
[1739944437589,3.71457,2692.1,2691.7,0.0587145]
[1739944437822,4.90823432,2692.1,2691.7,0.0587145]
[1739944438566,8.62292432,2692.1,2691.5,4.44887839]
[1739944438722,4.90823432,2692.1,2691.5,4.44887839]
[1739944439063,8.62290432,2692.1,2691.6,0.05469712]
[1739944439468,4.90823432,2692.1,2691.6,0.05469712]
[1739944439927,4.90823432,2692.1,2691.6,3.76994712]
[1739944440128,4.90823432,2692.1,2691.6,3.76987712]
[1739944440354,1.19366432,2692.1,2691.6,3.76987712]
[1739944440665,7.52347,2692.3,2691.6,3.76987712]
[1739944440864,3.7146,2692.1,2691.6,3.76987712]
[1739944441060,3.7146,2692.1,2691.6,7.48505712]
[1739944441358,3.8091,2692.3,2691.8,3.71491]
[1739944441590,3.8091,2692.3,2691.9,0.05444726]
[1739944443464,3.0,2692.3,2691.9,0.05444726]
[1739944443876,6.71434,2692.3,2691.9,0.05444726]
[1739944445661,3.0,2692.1,2691.9,0.05444726]
[1739944445865,3.0,2692.1,2691.6,3.71518]
[1739944446190,3.0,2692.1,2691.6,7.43036]
[1739944446396,3.0,2692.1,2691.7,0.05464347]
[1739944446749,0.7845,2692.0,2691.7,0.05464347]
[1739944446983,3.71488,2691.9,2691.5,0.73353839]
[1739944447183,3.71488,2691.9,2691.6,0.05474159]
[1739944447770,3.71502,2691.8,2691.6,0.05474159]
[1739944447969,3.71512,2691.7,2691.6,0.05474159]
[1739944448679,3.71512,2691.7,2691.2,3.71578]
[1739944449005,3.715,2691.8,2691.3,0.76236222]
[1739944449312,3.71512,2691.7,2691.3,0.81737598]
[1739944450795,3.71488,2691.9,2691.3,4.53304598]
[1739944450991,3.0,2691.8,2691.3,0.81737598]
[1739944453011,3.0,2692.0,2691.4,3.71548]
[1739944453307,3.0,2692.0,2691.5,0.05497861]
[1739944454418,3.0,2692.0,2691.7,3.71511]
[1739944454622,4.52826,2692.2,2691.7,3.71511]
[1739944454927,3.0,2692.1,2691.8,0.05468426]
[1739944455417,2.46261236,2692.4,2691.9,3.71484]
[1739944455632,9.85958,2692.5,2692.0,3.71468]
[1739944455783,9.85958,2692.5,2692.0,0.05432138]
[1739944455979,3.0,2692.4,2692.0,0.05432138]
[1739944456530,3.0,2692.4,2691.8,0.72757336]
[1739944456531,3.0,2692.2,2691.8,0.72757336]
[1739944456736,3.0,2692.2,2692.1,0.05422329]
[1739944457099,6.71447,2692.2,2691.8,0.72757336]
[1739944457294,6.71447,2692.2,2692.1,0.05422329]
[1739944457627,3.0,2692.2,2692.1,0.05422329]
[1739944457837,3.0,2692.2,2691.8,0.72757336]
[1739944457993,3.0,2692.2,2692.1,0.05422329]
[1739944458197,3.0,2692.2,2691.8,0.72757336]
[1739944458440,3.0,2692.2,2691.9,0.05441948]
[1739944458597,9.17684236,2692.4,2691.9,0.05441948]
[1739944459937,5.46261236,2692.4,2691.9,0.05441948]
[1739944460293,5.46261236,2692.4,2691.9,7.48400948]
[1739944460439,5.46261236,2692.4,2691.9,3.76914948]
[1739944460440,3.0,2692.4,2691.9,3.76914948]
[1739944460651,3.0,2692.4,2692.0,3.71462]
[1739944460828,3.0,2692.4,2692.0,3.76894138]
[1739944461028,3.71391,2692.6,2692.0,3.76894138]
[1739944461218,3.0,2692.5,2692.0,3.76894138]
[1739944461418,3.0,2692.5,2692.1,3.71444]
[1739944461617,3.0,2692.5,2692.1,3.76866329]
[1739944462646,3.0,2692.5,2692.2,3.71442]
[1739944462939,3.0,2692.5,2692.2,0.05412521]
[1739944463141,6.71404,2692.5,2692.2,0.05412521]
[1739944463333,3.71417,2692.4,2691.8,4.44246336]
[1739944463634,0.7729,2692.3,2691.8,4.44246336]
[1739944464039,4.4872,2692.3,2691.8,4.44246336]
[1739944465177,0.7729,2692.3,2692.0,3.71466]
[1739944465319,3.7978,2692.5,2692.0,3.71461]
[1739944467263,3.7978,2692.5,2692.0,7.42923]
[1739944467562,3.7978,2692.5,2692.1,0.05378444]
[1739944468517,3.7978,2692.5,2692.1,3.76823444]
[1739944470159,3.7978,2692.5,2692.1,0.05378444]
[1739944470655,3.7978,2692.5,2692.2,3.71439]
[1739944470951,3.7978,2692.5,2692.2,3.76807635]
[1739944471315,3.7978,2692.5,2692.2,0.05368635]
[1739944471658,3.7978,2692.5,2692.3,0.05358828]
[1739944471817,5.46261236,2692.6,2692.2,3.71432]
[1739944472157,3.0,2692.6,2692.4,0.05349021]
[1739944472366,3.0,2692.6,2692.3,0.05358828]
[1739944472517,3.0,2692.6,2692.5,0.05339215]
[1739944473011,3.0,2692.6,2692.2,3.71432]
[1739944473417,3.0,2692.6,2692.3,0.05358828]
[1739944473636,3.0,2692.6,2692.4,3.71414]
[1739944473918,3.0,2692.8,2692.4,3.76758021]
[1739944475623,3.0,2692.8,2692.5,0.74564407]
[1739944475824,3.0,2692.8,2692.5,0.79875296]
[1739944478560,3.23971236,2692.9,2692.5,0.79875296]
[1739944478765,3.23971236,2692.9,2692.5,4.51269296]
[1739944479062,3.23971236,2692.9,2692.6,0.05277764]
[1739944479267,3.23971236,2692.9,2692.6,3.76664764]
[1739944479566,2.46261236,2692.9,2692.6,3.76664764]
[1739944479729,3.7634,2693.1,2692.6,3.76664764]
[1739944480422,2.46261236,2693.2,2692.7,3.71362]
[1739944480677,2.46261236,2693.2,2692.9,3.71345]
[1739944481130,2.46261236,2693.2,2693.0,0.0523855]
[1739944481469,2.46261236,2693.2,2692.7,3.71362]
[1739944481626,2.46261236,2693.2,2693.1,0.05228748]
[1739944481939,2.46261236,2693.2,2692.8,3.71356]
[1739944482140,2.46261236,2693.2,2693.1,0.05216534]
[1739944482342,2.46261236,2693.2,2692.7,7.42727]
[1739944482567,2.46261236,2693.2,2693.1,0.05216534]
[1739944482779,2.46261236,2693.2,2692.7,7.42727]
[1739944482952,2.46261236,2693.2,2693.1,0.05216534]
[1739944483328,5.46261236,2693.2,2692.7,3.71362]
[1739944483630,0.7634,2693.3,2693.1,0.05216534]
[1739944483979,0.7634,2693.3,2692.9,3.71337]
[1739944484475,0.7634,2693.3,2693.0,0.05226336]
[1739944485330,0.7634,2693.3,2692.9,3.71343]
[1739944485531,0.7634,2693.3,2693.1,0.05216534]
[1739944485728,0.7634,2693.3,2693.0,0.8103236]
[1739944487305,0.7634,2693.3,2693.1,3.71317]
[1739944487463,0.7634,2693.3,2693.1,0.05216534]
[1739944489473,6.25401236,2693.5,2693.1,0.05216534]
[1739944492977,9.96668236,2693.5,2693.1,0.05216534]
[1739944494603,0.8279,2693.1,2692.6,0.72801169]
[1739944495133,0.8279,2692.8,2692.3,9.07421]
[1739944495321,0.8279,2692.8,2692.3,3.71421]
[1739944495634,0.8279,2692.8,2692.3,7.42842]
[1739944495834,0.8279,2692.8,2692.5,0.75117999]
[1739944496135,0.8279,2693.0,2692.5,4.46515999]
[1739944496430,0.8279,2693.0,2692.5,0.75117999]
[1739944496640,4.54126,2693.0,2692.5,0.75117999]
[1739944497744,4.54126,2693.0,2692.6,0.04853183]
[1739944499340,3.71356,2692.9,2692.6,0.04853183]
[1739944499637,4.54126,2693.0,2692.6,0.04853183]
[1739944501542,0.8279,2693.0,2692.6,0.04853183]
[1739944501846,3.0,2693.1,2692.6,3.76239183]
[1739944505227,3.0,2693.1,2692.7,3.71372]
[1739944505430,3.0,2693.1,2692.6,3.76239183]
[1739944505612,3.0,2693.1,2692.8,0.04833575]
[1739944505814,3.0,2693.1,2692.6,3.71386]
[1739944505815,3.0,2693.1,2692.7,0.04843379]
[1739944506157,3.0,2693.1,2692.8,0.04833575]
[1739944506448,3.0,2693.1,2692.6,7.42759]
[1739944506652,3.0,2693.1,2692.9,0.04823772]
[1739944506958,3.0,2693.1,2692.7,3.71371]
[1739944507157,3.0,2693.1,2692.8,0.04833575]
[1739944507329,3.0,2693.1,2692.7,3.71371]
[1739944507531,3.0,2693.1,2692.8,0.04833575]
[1739944507731,3.0,2693.1,2692.7,3.71371]
[1739944508243,3.0,2693.1,2692.8,0.04833575]
[1739944508562,3.0,2693.1,2692.7,3.71371]
[1739944508763,3.0,2693.1,2692.8,0.04833575]
[1739944509053,3.0,2693.1,2692.8,3.71359]
[1739944509358,3.0,2693.1,2692.9,0.04823772]
[1739944510559,2.46261236,2693.2,2692.9,0.04823772]
[1739944511058,2.46261236,2693.2,2692.9,3.76159772]
[1739944511267,0.8258,2693.4,2693.0,3.71331]
[1739944511766,3.8258,2693.4,2693.1,0.04819139]
[1739944512146,6.2086,2693.7,2693.1,3.76136139]
[1739944512317,0.8286,2693.7,2693.2,3.71303]
[1739944512526,3.8286,2693.7,2693.2,3.71303]
[1739944512820,5.38,2694.1,2693.3,0.03712895]
[1739944513062,5.38,2694.1,2693.3,3.76084093]
[1739944513246,6.7124,2693.7,2693.1,3.71316]
[1739944513448,3.0,2693.7,2693.4,0.0478863]
[1739944513762,3.0,2693.7,2693.5,0.04778832]
[1739944513936,6.71241,2693.7,2693.2,0.75486866]
[1739944514266,6.71241,2693.7,2693.3,0.0479843]
[1739944514451,8.08094524,2693.7,2693.3,0.0479843]
[1739944514622,8.08094524,2693.7,2693.1,3.71307]
[1739944514623,2.46261236,2693.6,2693.1,0.75300755]
[1739944514822,3.0,2693.5,2693.4,0.0478863]
[1739944515022,3.0,2693.5,2693.1,0.75300755]
[1739944515343,5.46261236,2693.6,2693.2,0.0480823]
[1739944515661,5.46261236,2693.6,2693.2,3.7610923]
[1739944515850,3.0,2693.6,2693.3,3.71289]
[1739944516255,3.0,2693.6,2693.4,0.04778653]
[1739944516702,3.0,2693.6,2693.2,3.71303]
[1739944516999,3.0,2693.6,2693.3,3.76074452]
[1739944517172,3.0,2693.6,2693.3,0.04788452]
[1739944517374,3.0,2693.6,2693.2,3.71301]
[1739944517569,3.0,2693.6,2693.3,0.04788452]
[1739944517808,3.0,2693.6,2693.2,3.71301]
[1739944518006,3.0,2693.6,2693.4,0.04778653]
[1739944518307,3.0,2693.6,2693.3,3.76078452]
[1739944518604,3.0,2693.6,2693.4,0.04778653]
[1739944519369,6.71251,2693.6,2693.1,0.75300755]
[1739944519576,6.71251,2693.6,2693.2,0.04793264]
[1739944520085,3.0,2693.6,2693.2,0.04793264]
[1739944521506,3.0,2693.6,2693.2,3.76097264]
[1739944521801,3.0,2693.7,2693.3,3.71281]
[1739944522013,3.0,2693.8,2693.3,3.71281]
[1739944522168,3.0,2693.8,2693.4,0.04747053]
[1739944522705,3.754,2694.0,2693.5,3.71263]
[1739944522928,3.754,2694.0,2693.6,0.04727456]
[1739944523132,7.46606,2694.0,2693.6,0.04727456]
[1739944523532,7.46606,2694.0,2693.3,7.42563]
[1739944523692,7.46606,2694.0,2693.4,3.76023053]
[1739944524133,3.754,2694.0,2693.4,3.76023053]
[1739944524318,3.0,2694.0,2693.5,3.71254]
[1739944524526,3.0,2694.0,2693.6,0.04727456]
[1739944524742,6.71198,2694.0,2693.4,3.71276]
[1739944525036,6.71198,2694.0,2693.5,0.04737254]
[1739944525395,3.0,2694.0,2693.5,0.04737254]
[1739944525841,6.71201,2694.0,2693.5,0.04737254]
[1739944528071,6.17483236,2693.9,2693.5,0.04737254]
[1739944528221,7.4249,2693.7,2693.5,0.04737254]
[1739944528562,3.71236,2693.7,2693.6,0.04727456]
[1739944528859,3.71276,2693.5,2692.8,9.34357]
[1739944529170,3.71274,2693.5,2692.8,9.34352]
[1739944529359,3.71274,2693.5,2692.8,9.07352]
[1739944529917,3.71274,2693.5,2692.9,3.71345]
[1739944530124,3.71279,2693.4,2692.9,0.75001674]
[1739944530356,3.71279,2693.4,2692.6,3.7138]
[1739944530357,3.71302,2693.3,2692.6,3.7138]
[1739944530550,3.71306,2693.2,2692.6,3.7138]
[1739944530758,3.71302,2693.3,2692.6,3.7138]
[1739944531066,3.713,2693.3,2692.8,0.73661959]
[1739944532251,3.71308,2693.2,2692.8,0.73661959]
[1739944532451,3.71323,2693.1,2692.8,0.73661959]
[1739944533372,0.756,2693.2,2692.8,0.73661959]
[1739944533582,3.71349,2692.9,2692.2,7.42869]
[1739944533870,3.71362,2692.8,2692.3,0.27]
[1739944534659,3.71362,2692.8,2692.4,0.759276]
[1739944535578,3.71348,2692.9,2692.4,0.759276]
[1739944535901,3.0,2693.0,2692.6,3.71379]
[1739944536073,4.46913,2693.2,2692.6,3.71379]
[1739944536273,3.71313,2693.2,2692.6,3.75092499]
[1739944536786,3.71313,2693.2,2692.7,3.71373]
[1739944537777,3.0,2693.3,2692.8,3.71357]
[1739944538484,3.0,2693.3,2692.9,3.71338]
[1739944539179,2.46261236,2693.4,2692.9,3.71338]
[1739944539363,3.0,2693.3,2692.9,3.71338]
[1739944539564,2.46261236,2693.4,2692.9,3.71338]
[1739944539764,6.71272,2693.5,2692.9,3.71338]
[1739944539980,6.71272,2693.5,2693.0,0.04823395]
[1739944540906,6.71272,2693.5,2693.1,0.72692077]
[1739944541265,6.71272,2693.5,2693.2,0.04803793]
[1739944542404,3.0,2693.5,2693.2,0.04803793]
[1739944542704,6.71265,2693.5,2693.1,0.72692077]
[1739944543075,6.71265,2693.5,2693.2,0.04803793]
[1739944543513,3.0,2693.5,2693.2,0.04803793]
[1739944544869,3.0,2693.5,2693.2,3.76107793]
[1739944545299,5.38,2693.9,2693.4,3.71277]
[1739944545513,5.38,2693.9,2693.2,3.76099793]
[1739944545514,3.71218,2693.9,2693.2,3.76099793]
[1739944545669,3.0,2693.8,2693.5,0.04767188]
[1739944545875,3.0,2693.8,2693.3,3.71288]
[1739944546213,3.0,2693.8,2693.3,3.7500055]
[1739944546416,0.7618,2694.2,2693.4,0.04754259]
[1739944546622,0.7618,2694.6,2694.1,3.71178]
[1739944546801,4.32803169,2694.6,2694.0,3.71192]
[1739944547005,0.7618,2694.6,2694.1,0.04685683]
[1739944547169,3.0,2694.5,2694.1,0.04685683]
[1739944547375,3.0,2694.6,2694.1,3.75866683]
[1739944547675,3.71109,2694.7,2694.1,3.75866683]
[1739944547884,3.71107,2694.7,2694.1,0.04685683]
[1739944548116,3.71132,2694.5,2693.7,3.98232]
[1739944548333,3.71132,2694.5,2693.8,3.75936068]
[1739944548852,3.71132,2694.5,2693.9,3.71204]
[1739944549055,3.71132,2694.5,2694.1,0.7418901]
[1739944549410,3.71132,2694.5,2694.2,0.0467589]
[1739944550657,6.71121,2694.6,2694.2,0.0467589]
[1739944550953,3.71126,2694.5,2694.2,0.0467589]
[1739944552057,3.71126,2694.5,2693.9,3.71204]
[1739944552354,7.52911,2694.4,2694.3,0.04666097]
[1739944552527,3.7119,2694.1,2693.5,9.34257]
[1739944552720,3.7119,2694.1,2693.6,0.77782607]
[1739944552922,2.46261236,2694.2,2693.6,0.04687566]
[1739944553137,3.71232,2693.8,2693.2,3.71302]
[1739944553339,3.71232,2693.8,2693.3,0.04721947]
[1739944553539,3.71232,2693.8,2693.2,3.71302]
[1739944553705,3.71232,2693.8,2693.3,0.04721947]
[1739944553909,2.46261236,2694.2,2693.3,0.0843448]
[1739944553910,3.712,2694.0,2693.3,0.0843448]
[1739944554324,3.0,2694.1,2693.6,0.04687556]
[1739944554526,3.0,2694.1,2693.6,3.75934556]
[1739944554913,6.71181,2694.1,2693.6,0.04687556]
[1739944555113,2.46261236,2694.5,2693.6,0.04687556]
[1739944555114,3.71136,2694.5,2693.9,3.71198]
[1739944555358,3.71136,2694.5,2694.0,0.0464283]
[1739944555661,3.0,2694.4,2694.0,0.0464283]
[1739944556020,3.0,2694.4,2693.8,3.98221]
[1739944556266,3.0,2694.4,2694.1,0.04633036]
[1739944556432,3.0,2694.4,2693.9,3.71208]
[1739944556767,3.0,2694.4,2693.8,0.27]
[1739944556935,3.71175,2694.2,2693.9,0.04652625]
[1739944558093,3.71195,2694.0,2693.7,5.36]
[1739944558362,3.71195,2694.0,2693.8,0.04662421]
[1739944558536,3.71195,2694.0,2693.7,5.36]
[1739944558736,3.71195,2694.0,2693.8,0.04662421]
[1739944558936,3.71195,2694.0,2693.7,5.36]
[1739944559137,3.71195,2694.0,2693.8,0.04662421]
[1739944559334,3.71195,2694.0,2693.7,5.36]
[1739944559542,3.71195,2694.0,2693.8,0.04662421]
[1739944559742,3.71195,2694.0,2693.7,5.36]
[1739944559942,3.71195,2694.0,2693.8,0.04662421]
[1739944560236,3.71195,2694.0,2693.7,5.36]
[1739944560443,3.71195,2694.0,2693.9,0.04652625]
[1739944561065,0.7843,2693.9,2693.2,5.36]
[1739944561284,3.7124,2693.7,2693.2,0.27]
[1739944561567,3.7124,2693.7,2693.4,0.74993859]
[1739944562287,4.49647,2693.9,2693.4,0.74993859]
[1739944562464,3.71245,2693.7,2693.4,0.74993859]
[1739944562860,8.20867,2693.9,2693.4,0.74993859]
[1739944563071,4.49647,2693.9,2693.4,0.74993859]
[1739944563266,3.71217,2693.9,2693.4,0.74993859]
[1739944563467,7.42437,2693.9,2693.4,0.74993859]
[1739944563675,3.71223,2693.8,2693.4,0.74993859]
[1739944564496,3.71217,2693.9,2693.4,0.74993859]
[1739944564650,3.71258,2693.6,2693.4,0.74993859]
[1739944565613,3.71227,2693.8,2693.4,0.74993859]
[1739944567074,3.71251,2693.6,2692.9,3.71343]
[1739944567312,3.71251,2693.6,2693.0,3.71329]
[1739944567621,3.71273,2693.5,2692.8,9.07356]
[1739944568467,3.71302,2693.3,2692.9,0.74654915]
[1739944568695,3.71302,2693.3,2692.7,3.71371]
[1739944569007,3.0,2693.4,2692.6,0.27]
[1739944569305,7.52861,2693.6,2693.0,3.71327]
[1739944569529,3.71274,2693.5,2692.9,3.71346]
[1739944569693,3.71274,2693.5,2692.9,7.42685]
[1739944569896,3.71274,2693.5,2692.9,3.71339]
[1739944570284,3.71294,2693.3,2692.8,0.73895713]
[1739944570729,3.71294,2693.3,2692.8,4.45254713]
[1739944571394,3.7127,2693.5,2692.8,4.45246713]
[1739944571593,3.71279,2693.4,2692.8,4.45246713]
[1739944571809,0.8161,2693.6,2693.0,3.71324]
[1739944572120,6.71238,2693.7,2693.2,3.71301]
[1739944572302,6.71224,2693.8,2693.2,3.71301]
[1739944572493,3.0,2693.8,2693.1,5.36]
[1739944572700,3.0,2693.8,2693.3,0.04737456]
[1739944573015,3.0,2693.8,2693.1,5.36]
[1739944573016,3.0,2693.8,2693.4,0.04727657]
[1739944573177,3.0,2693.8,2693.1,5.36]